fUSD/lending_fUSD_20260118
["ID","MTS","AMOUNT","RATE_DAILY","PERIOD"]
[402634514,1768731063257,-159.8708442,0.00018,2]
[402634515,1768731063266,-236.45405301,0.00018,2]
[402634516,1768731063276,-150.0,0.00018,2]
[402634517,1768731063286,-150.0,0.00018,2]
[402634518,1768731063297,-150.0,0.00018,2]
[402634519,1768731063308,-150.0,0.00018,2]
[402634520,1768731063317,-265.5663701,0.00018,2]
[402634521,1768731063327,-963612.95896313,0.00018,2]
[402634522,1768731064228,-151.0,0.00015829,2]
[402634523,1768731064238,-245.79079401,0.00017023,2]
[402634524,1768731064248,-500.0,0.00017808,2]
[402634525,1768731064258,-323.92938161,0.000179,2]
[402634526,1768731064267,-41.22605327,0.00018,2]
[402634527,1768731064278,-255.5890636,0.00018,2]
[402634599,1768731466015,1089.71,0.00027397,120]
[402634630,1768732003093,-285.64634946,0.00014895,2]
[402634651,1768732231407,-200.0,0.00014829,2]
[402634653,1768732231417,-97.36365054,0.00014895,2]
[402634654,1768732231427,-1200.0,0.00015098,2]
[402634655,1768732231436,-300.0,0.00015098,2]
[402634656,1768732231446,-443.90864766,0.00015098,2]
[402634657,1768732231458,-999.0,0.00015098,2]
[402634658,1768732231472,-27585.30319878,0.00015098,2]
[402634659,1768732231569,-589.68154739,0.00015098,2]
[402634660,1768732231581,-846.63830617,0.00015098,2]
[402634661,1768732231590,-542.28124325,0.00015099,2]
[402634662,1768732231601,-2345.02498503,0.00015099,2]
[402634663,1768732231624,-395.00000005,0.00015099,2]
[402634664,1768732231635,-5415.28653727,0.00015099,2]
[402634665,1768732231645,-891.90743451,0.00015099,2]
[402634666,1768732231655,-223.5341384,0.00015099,2]
[402634667,1768732231665,-249.00467735,0.00015099,2]
[402634668,1768732231675,-233.4771006,0.00015189,2]
[402634669,1768732231684,-202.3452554,0.0001519,2]
[402634671,1768732231694,-500.0,0.0001519,2]
[402634672,1768732231704,-283.93797547,0.00015197,2]
[402634674,1768732231714,-300.0,0.00015197,2]
[402634676,1768732231723,-154.74371182,0.00015198,2]
[402634678,1768732231733,-500.0,0.00015198,2]
[402634680,1768732231741,-193.91555267,0.00015198,2]
[402634682,1768732231751,-207.32000736,0.00015198,2]
[402634683,1768732231760,-500.0,0.00015198,2]
[402634685,1768732231769,-611.68071292,0.00015198,2]
[402634687,1768732231778,-500.0,0.00015198,2]
[402634688,1768732231787,-500.0,0.00015198,2]
[402634690,1768732231797,-500.0,0.00015198,2]
[402634692,1768732231806,-500.0,0.00015198,2]
[402634693,1768732231816,-500.0,0.00015198,2]
[402634695,1768732231826,-505.96569646,0.00015198,2]
[402634698,1768732231835,-1066.30640652,0.00015198,5]
[402634699,1768732231844,-2570.7981,0.00015199,2]
[402634700,1768732231853,-5723.7137671,0.00015199,2]
[402634701,1768732231868,-574.24112448,0.00015199,2]
[402634702,1768732237683,-875.27326887,0.00015199,2]
[402634703,1768732237694,-825.89185212,0.00015199,2]
[402634704,1768732237706,-2000.86998743,0.00015199,2]
[402634705,1768732237715,-505.17344556,0.00015199,2]
[402634706,1768732237725,-588.0,0.00015199,2]
[402634707,1768732237736,-428.81939326,0.00015199,2]
[402634736,1768732239631,-8894.3368452,0.00015199,2]
[402634739,1768732239642,-2779.0,0.00015199,2]
[402634755,1768732239791,-108689.84031598,0.00015199,2]
[402634756,1768732239800,-150.99,0.00015199,2]
[402634757,1768732239810,-1467.41,0.00015199,2]
[402634758,1768732239819,-9999.99,0.00015199,2]
[402634759,1768732239829,-9999.99,0.00015199,2]
[402634760,1768732239839,-9999.99,0.00015199,2]
[402634761,1768732239848,-49668.18,0.00015199,2]
[402634762,1768732239858,-150.99,0.00015199,2]
[402634763,1768732239867,-24433.7,0.00015199,2]
[402634764,1768732239877,-9999.99,0.00015199,2]
[402634765,1768732239886,-18021.83,0.00015199,2]
[402634766,1768732239895,-999.99,0.00015199,2]
[402634767,1768732239905,-3820.45,0.00015199,2]
[402634768,1768732239916,-1605.07803308,0.00015265,2]
[402634769,1768732239925,-500.0,0.00015298,2]
[402634770,1768732239934,-547.66636036,0.00015298,2]
[402634771,1768732239943,-8697.59276557,0.0001541,2]
[402634772,1768732239954,-166.66,0.00015433,2]
[402634773,1768732239963,-223.5341384,0.00015476,2]
[402634774,1768732239972,-500.0,0.00015498,2]
[402634775,1768732239981,-249.00467733,0.00015499,2]
[402634776,1768732239990,-3667.45,0.00015559,2]
[402634777,1768732239999,-500.0,0.00015673,2]
[402634778,1768732240008,-500.0,0.00015673,2]
[402634779,1768732240017,-500.0,0.00015673,2]
[402634780,1768732240028,-500.0,0.00015673,2]
[402634781,1768732240037,-500.0,0.00015673,2]
[402634782,1768732240047,-500.67754118,0.00015673,2]
[402634783,1768732240056,-500.0,0.00015673,2]
[402634784,1768732240065,-343.65136961,0.00015673,2]
[402634785,1768732240074,-8697.59276557,0.00015721,2]
[402634786,1768732240084,-151.0,0.00015729,2]
[402634787,1768732240093,-626.22881488,0.00015738,2]
[402634788,1768732240103,-223.5341384,0.00015853,2]
[402634789,1768732240112,-500.0,0.0001589,2]
[402634790,1768732240122,-161.68383371,0.0001589,2]
[402634791,1768732240132,-500.0,0.0001589,2]
[402634792,1768732240141,-249.00467733,0.00015899,2]
[402634793,1768732240150,-466.53,0.00015918,2]
[402634794,1768732240160,-500.0,0.00015945,2]
[402634795,1768732240169,-500.0,0.00015945,2]
[402634797,1768732240178,-500.0,0.00015946,2]
[402634798,1768732240188,-174.61919141,0.00015953,2]
[402634799,1768732240198,-210.58675356,0.00015953,2]
[402634800,1768732240207,-1000.0,0.00015953,2]
[402634801,1768732240216,-2000.0,0.00015953,2]
[402634802,1768732240226,-1000.0,0.00015953,2]
[402634803,1768732240235,-500.0,0.00015953,2]
[402634804,1768732240245,-1000.0,0.00015953,2]
[402634805,1768732240256,-2000.0,0.00015953,2]
[402634806,1768732240265,-500.0,0.00015953,2]
[402634807,1768732240274,-1000.0,0.00015953,2]
[402634808,1768732240284,-2000.0,0.00015953,2]
[402634809,1768732240293,-500.0,0.00015953,2]
[402634810,1768732240302,-1000.0,0.00015953,2]
[402634811,1768732240312,-500.0,0.00015953,2]
[402634812,1768732240321,-2000.0,0.00015953,2]
[402634813,1768732240330,-500.0,0.00015953,2]
[402634814,1768732240340,-1000.0,0.00015953,2]
[402634815,1768732240349,-2000.0,0.00015953,2]
[402634816,1768732240359,-527.02085112,0.00015953,2]
[402634817,1768732240368,-1000.0,0.00015953,2]
[402634818,1768732240378,-2000.0,0.00015953,2]
[402634819,1768732240388,-1000.0,0.00015953,2]
[402634820,1768732240397,-2000.0,0.00015953,2]
[402634821,1768732240407,-151.0,0.00015953,2]
[402634822,1768732240416,-1000.0,0.00015953,2]
[402634823,1768732240426,-2000.0,0.00015953,2]
[402634824,1768732240435,-1000.0,0.00015953,2]
[402634825,1768732240444,-2000.0,0.00015953,2]
[402634826,1768732240456,-1000.0,0.00015953,2]
[402634827,1768732240470,-620.0,0.00015953,2]
[402634828,1768732240479,-2000.0,0.00015953,2]
[402634829,1768732240488,-585.60118943,0.00015953,2]
[402634830,1768732240498,-2000.0,0.00015953,2]
[402634831,1768732240508,-721.12765535,0.00015953,2]
[402634832,1768732240518,-500.0,0.00015953,2]
[402634833,1768732240527,-322.6107,0.00015953,2]
[402634834,1768732240539,-500.0,0.00015953,2]
[402634835,1768732240548,-276.52158018,0.00015953,2]
[402634836,1768732240557,-1000.0,0.00015953,2]
[402634837,1768732240566,-9000.0,0.00015953,2]
[402634838,1768732240575,-1000.0,0.00015953,2]
[402634839,1768732240584,-9000.0,0.00015953,2]
[402634840,1768732240593,-9000.0,0.00015953,2]
[402634841,1768732240602,-9000.0,0.00015953,2]
[402634842,1768732240612,-9000.0,0.00015953,2]
[402634843,1768732240621,-1000.0,0.00015953,2]
[402634844,1768732240630,-4001.0,0.00015953,2]
[402634845,1768732240639,-366.95791029,0.00015953,2]
[402634846,1768732240651,-8633.04208971,0.00015953,2]
[402634847,1768732240660,-574.12855637,0.00015953,2]
[402634848,1768732240670,-2691.78872137,0.00015953,2]
[402634849,1768732240679,-1000.0,0.00015953,2]
[402634850,1768732240690,-250.0,0.00015953,2]
[402634851,1768732240699,-1000.0,0.00015953,2]
[402634852,1768732240708,-250.0,0.00015953,2]
[402634853,1768732240717,-1000.0,0.00015953,2]
[402634854,1768732240726,-250.0,0.00015953,2]
[402634855,1768732240735,-1000.0,0.00015953,2]
[402634856,1768732240745,-250.0,0.00015953,2]
[402634857,1768732240754,-1000.0,0.00015953,2]
[402634858,1768732240762,-250.0,0.00015953,2]
[402634859,1768732240772,-500.0,0.00015953,2]
[402634860,1768732240781,-1000.0,0.00015953,2]
[402634861,1768732240790,-275.96223638,0.00015953,2]
[402634862,1768732240799,-500.0,0.00015953,2]
[402634863,1768732240809,-1000.0,0.00015953,2]
[402634864,1768732240818,-500.0,0.00015953,2]
[402634865,1768732240827,-1000.0,0.00015953,2]
[402634866,1768732240836,-500.0,0.00015953,2]
[402634867,1768732240845,-153.39907581,0.00015953,2]
[402634868,1768732240855,-582.19131595,0.00015953,2]
[402634869,1768732240864,-1500.0,0.00015953,2]
[402634870,1768732240873,-1500.0,0.00015953,2]
[402634871,1768732240882,-1500.0,0.00015953,2]
[402634872,1768732240892,-1500.0,0.00015953,2]
[402634873,1768732240901,-1500.0,0.00015953,2]
[402634874,1768732240911,-1500.0,0.00015953,2]
[402634875,1768732240919,-1500.0,0.00015953,2]
[402634876,1768732240928,-1609.96189193,0.00015953,2]
[402634877,1768732240937,-500.0,0.00016,2]
[402634878,1768732240947,-500.0,0.00016,2]
[402634879,1768732240956,-8697.59276557,0.00016033,2]
[402634880,1768732240965,-500.0,0.00016054,2]
[402634881,1768732240975,-500.0,0.00016054,2]
[402634882,1768732240984,-166.66,0.0001607,2]
[402634883,1768732240993,-500.0,0.00016109,2]
[402634884,1768732241002,-639.0,0.00016109,2]
[402634885,1768732241011,-150.0,0.00016154,2]
[402634886,1768732241021,-500.0,0.00016164,2]
[402634887,1768732241030,-160.64543439,0.00016164,2]
[402634888,1768732241039,-150.0,0.000162,2]
[402634889,1768732241049,-150.0,0.000162,2]
[402634890,1768732241058,-150.0,0.000162,2]
[402634891,1768732241068,-150.0,0.000162,2]
[402634892,1768732241077,-159.8708442,0.000162,2]
[402634893,1768732241086,-150.0,0.000162,2]
[402634894,1768732241095,-150.0,0.000162,2]
[402634895,1768732241104,-150.0,0.000162,2]
[402634896,1768732241113,-150.0,0.000162,2]
[402634897,1768732241123,-150.0,0.000162,2]
[402634898,1768732241132,-150.0,0.000162,2]
[402634899,1768732241141,-150.0,0.000162,2]
[402634900,1768732241151,-150.0,0.00016209,2]
[402634901,1768732241160,-500.0,0.00016219,2]
[402634902,1768732241171,-1000.0,0.00016221,2]
[402634903,1768732241180,-1000.0,0.00016221,2]
[402634904,1768732241189,-258.83188155,0.00016264,2]
[402634905,1768732241199,-500.0,0.00016274,2]
[402634906,1768732241208,-249.00467733,0.00016299,2]
[402634907,1768732241216,-150.0,0.0001632,2]
[402634908,1768732241226,-510.0,0.00016322,2]
[402634909,1768732241235,-500.0,0.00016328,2]
[402634910,1768732241244,-3512.98056621,0.00016344,2]
[402634911,1768732241255,-3864.46995742,0.00016344,2]
[402634912,1768732241277,-624.77257935,0.00016344,2]
[402634913,1768732241289,-292.41367375,0.00016344,2]
[402634914,1768732241300,-318.7285,0.00016344,2]
[402634915,1768732241312,-84.22748884,0.00016344,2]
[402634916,1768732241321,-524.2533444,0.00016383,2]
[402634917,1768732241332,-500.0,0.00016437,2]
[402634918,1768732241342,-957.38758843,0.00016438,2]
[402634919,1768732241351,-500.0,0.00016438,2]
[402634920,1768732241361,-500.0,0.00016438,2]
[402634921,1768732241371,-500.0,0.00016438,2]
[402634922,1768732241380,-212.23328331,0.00016438,2]
[402634923,1768732241390,-500.0,0.00016438,2]
[402634924,1768732241399,-396.81045313,0.00016438,2]
[402634925,1768732241408,-500.0,0.00016438,2]
[402634926,1768732241417,-500.0,0.00016438,2]
[402634927,1768732241427,-500.0,0.00016438,2]
[402634928,1768732241438,-500.0,0.00016438,2]
[402634929,1768732241448,-194.45987396,0.00016438,2]
[402634930,1768732241459,-301.43645124,0.00016438,2]
[402634931,1768732241471,-500.0,0.00016438,2]
[402634932,1768732241481,-500.0,0.00016438,2]
[402634933,1768732241491,-500.0,0.00016438,2]
[402634934,1768732241501,-500.0,0.00016438,2]
[402634935,1768732241512,-500.0,0.00016438,2]
[402634936,1768732241522,-500.0,0.00016438,2]
[402634937,1768732241531,-500.0,0.00016438,2]
[402634938,1768732241540,-500.0,0.00016438,2]
[402634939,1768732241550,-500.0,0.00016438,2]
[402634940,1768732241559,-500.0,0.00016438,2]
[402634941,1768732241568,-500.0,0.00016438,2]
[402634942,1768732241578,-500.0,0.00016438,2]
[402634943,1768732241587,-500.0,0.00016438,2]
[402634944,1768732241597,-500.0,0.00016438,2]
[402634945,1768732241606,-500.0,0.00016438,2]
[402634946,1768732241615,-604.81569112,0.00016438,2]
[402634947,1768732241624,-360.92811031,0.00016438,2]
[402634948,1768732241633,-500.0,0.00016438,2]
[402634949,1768732241643,-500.0,0.00016438,2]
[402634950,1768732241652,-500.0,0.00016438,2]
[402634951,1768732241661,-500.0,0.00016438,2]
[402634952,1768732241670,-500.0,0.00016438,2]
[402634953,1768732241679,-560.44625026,0.00016438,2]
[402634954,1768732241688,-500.0,0.00016438,2]
[402634955,1768732241699,-500.0,0.00016438,2]
[402634956,1768732241708,-500.0,0.00016438,2]
[402634957,1768732241717,-500.0,0.00016438,2]
[402634958,1768732241726,-500.0,0.00016438,2]
[402634959,1768732241735,-500.0,0.00016438,2]
[402634960,1768732241745,-500.0,0.00016438,2]
[402634961,1768732241755,-500.0,0.00016438,2]
[402634962,1768732241765,-500.0,0.00016438,2]
[402634963,1768732241778,-314.25929892,0.00016438,2]
[402634964,1768732241788,-500.0,0.00016438,2]
[402634965,1768732241798,-486.28230177,0.00016438,2]
[402634966,1768732241809,-500.0,0.00016438,2]
[402634967,1768732241818,-500.0,0.00016438,2]
[402634968,1768732241828,-500.0,0.00016438,2]
[402634969,1768732241837,-1000.0,0.00016438,2]
[402634970,1768732241847,-500.0,0.00016438,2]
[402634971,1768732241857,-500.0,0.00016438,2]
[402634972,1768732241866,-500.0,0.00016438,2]
[402634973,1768732241875,-500.0,0.00016438,2]
[402634974,1768732241884,-500.0,0.00016438,2]
[402634975,1768732242145,-613.21,0.00016438,2]
[402634976,1768732242156,-500.0,0.00016438,2]
[402634977,1768732242165,-500.0,0.00016438,2]
[402634978,1768732242174,-500.0,0.00016438,2]
[402634979,1768732242183,-500.0,0.00016438,2]
[402634980,1768732242191,-500.0,0.00016438,2]
[402634981,1768732242201,-500.0,0.00016438,2]
[402634982,1768732242210,-382.93866645,0.00016438,2]
[402634983,1768732242219,-500.0,0.00016438,2]
[402634984,1768732242228,-500.0,0.00016438,2]
[402634985,1768732242238,-500.0,0.00016438,2]
[402634986,1768732242249,-500.0,0.00016438,2]
[402634987,1768732242261,-500.0,0.00016438,2]
[402634988,1768732242271,-500.0,0.00016438,2]
[402634989,1768732242281,-500.0,0.00016438,2]
[402634990,1768732242291,-1611.7,0.00016438,2]
[402634991,1768732242302,-500.0,0.00016438,2]
[402634992,1768732242311,-506.07,0.00016438,2]
[402634993,1768732242320,-500.0,0.00016438,2]
[402634994,1768732242330,-504.85198309,0.00016438,2]
[402634995,1768732242339,-500.0,0.00016438,2]
[402634996,1768732242348,-500.0,0.00016438,2]
[402634997,1768732242357,-546.15,0.00016438,2]
[402634998,1768732242367,-440.10841702,0.00016438,2]
[402634999,1768732242376,-500.0,0.00016438,2]
[402635000,1768732242386,-500.0,0.00016438,2]
[402635001,1768732242395,-500.0,0.00016438,2]
[402635002,1768732242405,-500.0,0.00016438,2]
[402635003,1768732242415,-500.0,0.00016438,2]
[402635004,1768732242424,-500.0,0.00016438,2]
[402635005,1768732242434,-378.05924286,0.00016438,2]
[402635006,1768732242443,-500.0,0.00016438,2]
[402635007,1768732242453,-500.0,0.00016438,2]
[402635008,1768732242466,-500.0,0.00016438,2]
[402635009,1768732242476,-500.0,0.00016438,2]
[402635010,1768732242485,-500.0,0.00016438,2]
[402635011,1768732242495,-500.0,0.00016438,2]
[402635012,1768732242506,-500.0,0.00016438,2]
[402635013,1768732242515,-500.0,0.00016438,2]
[402635014,1768732242525,-500.0,0.00016438,2]
[402635015,1768732242534,-500.0,0.00016438,2]
[402635016,1768732242544,-597.05,0.00016438,2]
[402635017,1768732242553,-500.0,0.00016438,2]
[402635019,1768732242563,-500.0,0.00016438,2]
[402635021,1768732242572,-500.0,0.00016438,2]
[402635022,1768732242581,-500.0,0.00016438,2]
[402635023,1768732242591,-500.0,0.00016438,2]
[402635024,1768732242600,-500.0,0.00016438,2]
[402635025,1768732242609,-500.0,0.00016438,2]
[402635026,1768732242618,-500.0,0.00016438,2]
[402635027,1768732242628,-500.0,0.00016438,2]
[402635028,1768732242637,-500.0,0.00016438,2]
[402635029,1768732242656,-500.0,0.00016438,2]
[402635030,1768732242666,-500.0,0.00016438,2]
[402635031,1768732242675,-500.0,0.00016438,2]
[402635032,1768732242685,-500.0,0.00016438,2]
[402635033,1768732242694,-500.0,0.00016438,2]
[402635034,1768732242705,-500.0,0.00016438,2]
[402635035,1768732242714,-500.0,0.00016438,2]
[402635036,1768732242724,-500.0,0.00016438,2]
[402635037,1768732242733,-500.0,0.00016438,2]
[402635038,1768732242743,-500.0,0.00016438,2]
[402635039,1768732242752,-500.0,0.00016438,2]
[402635040,1768732242762,-500.0,0.00016438,2]
[402635041,1768732242771,-500.0,0.00016438,2]
[402635042,1768732242781,-500.0,0.00016438,2]
[402635043,1768732242791,-500.0,0.00016438,2]
[402635044,1768732242800,-500.0,0.00016438,2]
[402635045,1768732242810,-570.19,0.00016438,2]
[402635046,1768732242819,-500.0,0.00016438,2]
[402635047,1768732242828,-500.0,0.00016438,2]
[402635048,1768732242839,-500.0,0.00016438,2]
[402635049,1768732242848,-500.0,0.00016438,2]
[402635050,1768732242858,-500.0,0.00016438,2]
[402635051,1768732242868,-500.0,0.00016438,2]
[402635052,1768732242877,-500.0,0.00016438,2]
[402635053,1768732242886,-500.0,0.00016438,2]
[402635054,1768732242896,-500.0,0.00016438,2]
[402635055,1768732242905,-500.0,0.00016438,2]
[402635056,1768732242915,-500.0,0.00016438,2]
[402635057,1768732242925,-477.49917106,0.00016438,2]
[402635058,1768732242935,-500.0,0.00016438,2]
[402635060,1768732242945,-500.0,0.00016438,2]
[402635061,1768732242954,-500.0,0.00016438,2]
[402635062,1768732242964,-500.0,0.00016438,2]
[402635063,1768732242973,-500.0,0.00016438,2]
[402635064,1768732242983,-521.03,0.00016438,2]
[402635065,1768732242993,-500.0,0.00016438,2]
[402635066,1768732243007,-500.0,0.00016438,2]
[402635067,1768732243017,-500.0,0.00016438,2]
[402635068,1768732243028,-595.5,0.00016438,2]
[402635069,1768732243038,-500.0,0.00016438,2]
[402635070,1768732243048,-500.0,0.00016438,2]
[402635071,1768732243059,-500.0,0.00016438,2]
[402635072,1768732243069,-340.0,0.00016438,2]
[402635073,1768732243079,-500.0,0.00016438,2]
[402635074,1768732243088,-626.37,0.00016438,2]
[402635075,1768732243098,-500.0,0.00016438,2]
[402635076,1768732243108,-500.0,0.00016438,2]
[402635077,1768732243118,-705.84,0.00016438,2]
[402635078,1768732243128,-500.0,0.00016438,2]
[402635080,1768732243138,-500.0,0.00016438,2]
[402635081,1768732243148,-500.0,0.00016438,2]
[402635082,1768732243157,-500.0,0.00016438,2]
[402635083,1768732243167,-500.0,0.00016438,2]
[402635084,1768732243176,-500.0,0.00016438,2]
[402635085,1768732243185,-1595.35,0.00016438,2]
[402635086,1768732243196,-500.0,0.00016438,2]
[402635087,1768732243205,-500.0,0.00016438,2]
[402635088,1768732243215,-500.0,0.00016438,2]
[402635089,1768732243225,-500.0,0.00016438,2]
[402635090,1768732243235,-500.0,0.00016438,2]
[402635091,1768732243245,-500.0,0.00016438,2]
[402635092,1768732243254,-500.0,0.00016438,2]
[402635093,1768732243264,-500.0,0.00016438,2]
[402635094,1768732243274,-500.0,0.00016438,2]
[402635095,1768732243284,-500.0,0.00016438,2]
[402635096,1768732243293,-500.0,0.00016438,2]
[402635097,1768732243303,-500.0,0.00016438,2]
[402635098,1768732243313,-500.0,0.00016438,2]
[402635099,1768732243322,-500.0,0.00016438,2]
[402635100,1768732243333,-500.0,0.00016438,2]
[402635101,1768732243343,-500.0,0.00016438,2]
[402635102,1768732243352,-500.0,0.00016438,2]
[402635103,1768732243362,-500.0,0.00016438,2]
[402635104,1768732243371,-500.0,0.00016438,2]
[402635105,1768732243381,-500.0,0.00016438,2]
[402635106,1768732243390,-500.0,0.00016438,2]
[402635107,1768732243400,-500.0,0.00016438,2]
[402635108,1768732243410,-500.0,0.00016438,2]
[402635109,1768732243420,-500.0,0.00016438,2]
[402635110,1768732243429,-500.0,0.00016438,2]
[402635111,1768732243439,-500.0,0.00016438,2]
[402635112,1768732243449,-500.0,0.00016438,2]
[402635113,1768732243459,-500.0,0.00016438,2]
[402635114,1768732243471,-500.0,0.00016438,2]
[402635115,1768732243481,-500.0,0.00016438,2]
[402635116,1768732243490,-500.0,0.00016438,2]
[402635117,1768732243500,-500.0,0.00016438,2]
[402635118,1768732243510,-500.0,0.00016438,2]
[402635119,1768732243520,-500.0,0.00016438,2]
[402635120,1768732243530,-500.0,0.00016438,2]
[402635121,1768732243539,-500.0,0.00016438,2]
[402635122,1768732243549,-396.38953581,0.00016438,2]
[402635123,1768732243560,-712.97,0.00016438,2]
[402635124,1768732243569,-500.0,0.00016438,2]
[402635125,1768732243579,-500.0,0.00016438,2]
[402635126,1768732243589,-500.0,0.00016438,2]
[402635127,1768732243598,-500.0,0.00016438,2]
[402635128,1768732243608,-500.0,0.00016438,2]
[402635129,1768732243618,-500.0,0.00016438,2]
[402635130,1768732243628,-500.0,0.00016438,2]
[402635131,1768732243638,-500.0,0.00016438,2]
[402635132,1768732243648,-500.0,0.00016438,2]
[402635133,1768732243658,-500.0,0.00016438,2]
[402635134,1768732243667,-500.0,0.00016438,2]
[402635135,1768732243677,-500.0,0.00016438,2]
[402635136,1768732243687,-658.8,0.00016438,2]
[402635137,1768732243697,-500.0,0.00016438,2]
[402635138,1768732243707,-500.0,0.00016438,2]
[402635139,1768732243716,-500.0,0.00016438,2]
[402635140,1768732243726,-500.0,0.00016438,2]
[402635141,1768732243735,-500.0,0.00016438,2]
[402635142,1768732243745,-500.0,0.00016438,2]
[402635143,1768732243756,-500.0,0.00016438,2]
[402635144,1768732243765,-500.0,0.00016438,2]
[402635145,1768732243775,-500.0,0.00016438,2]
[402635146,1768732243784,-500.0,0.00016438,2]
[402635147,1768732243793,-500.0,0.00016438,2]
[402635148,1768732243803,-677.13,0.00016438,2]
[402635149,1768732243812,-500.0,0.00016438,2]
[402635150,1768732243823,-500.0,0.00016438,2]
[402635151,1768732243834,-500.0,0.00016438,2]
[402635152,1768732243843,-500.0,0.00016438,2]
[402635153,1768732243853,-503.89607522,0.00016438,2]
[402635154,1768732243863,-500.0,0.00016438,2]
[402635155,1768732243873,-500.0,0.00016438,2]
[402635156,1768732243883,-500.0,0.00016438,2]
[402635157,1768732243893,-500.0,0.00016438,2]
[402635158,1768732243902,-500.0,0.00016438,2]
[402635159,1768732243911,-500.0,0.00016438,2]
[402635160,1768732243922,-500.0,0.00016438,2]
[402635161,1768732243932,-500.0,0.00016438,2]
[402635162,1768732243942,-500.0,0.00016438,2]
[402635163,1768732243951,-500.0,0.00016438,2]
[402635164,1768732243961,-300.0,0.00016438,2]
[402635165,1768732243971,-500.0,0.00016438,2]
[402635166,1768732243981,-500.0,0.00016438,2]
[402635167,1768732243991,-500.0,0.00016438,2]
[402635168,1768732244000,-253.68769872,0.00016438,2]
[402635169,1768732244010,-500.0,0.00016438,2]
[402635170,1768732244019,-500.0,0.00016438,2]
[402635171,1768732244029,-500.0,0.00016438,2]
[402635172,1768732244039,-500.0,0.00016438,2]
[402635173,1768732244050,-500.0,0.00016438,2]
[402635174,1768732244060,-500.0,0.00016438,2]
[402635175,1768732244070,-777.05,0.00016438,2]
[402635176,1768732244079,-500.0,0.00016438,2]
[402635177,1768732244090,-500.0,0.00016438,2]
[402635178,1768732244100,-500.0,0.00016438,2]
[402635179,1768732244110,-500.0,0.00016438,2]
[402635180,1768732244120,-500.0,0.00016438,2]
[402635181,1768732244132,-500.0,0.00016438,2]
[402635182,1768732244142,-470.03835131,0.00016438,2]
[402635183,1768732244151,-4641.83,0.00016438,2]
[402635184,1768732244161,-500.0,0.00016438,2]
[402635185,1768732244170,-500.0,0.00016438,2]
[402635186,1768732244179,-500.0,0.00016438,2]
[402635187,1768732244189,-500.0,0.00016438,2]
[402635188,1768732244198,-500.0,0.00016438,2]
[402635189,1768732244208,-500.0,0.00016438,2]
[402635190,1768732244218,-500.0,0.00016438,2]
[402635191,1768732244227,-500.0,0.00016438,2]
[402635192,1768732244236,-500.0,0.00016438,2]
[402635193,1768732244246,-500.0,0.00016438,2]
[402635194,1768732244255,-500.0,0.00016438,2]
[402635195,1768732244264,-500.0,0.00016438,2]
[402635196,1768732244274,-500.0,0.00016438,2]
[402635197,1768732244283,-500.0,0.00016438,2]
[402635198,1768732244292,-500.0,0.00016438,2]